fUSD/lending_fUSD_20260506
["ID","MTS","AMOUNT","RATE_DAILY","PERIOD"]
[421663633,1778034675000,-311.13227029,0.00041096,2]
[421663637,1778034675000,-779.226677,0.00041096,120]
[421663632,1778034675000,-502.057055,0.00041096,120]
[421663636,1778034675000,-779.226677,0.00041096,120]
[421663635,1778034675000,-779.226677,0.00041096,120]
[421663642,1778034675000,-779.226677,0.00041096,120]
[421663644,1778034675000,-779.226677,0.00041096,120]
[421663649,1778034675000,-779.226677,0.00041096,120]
[421663641,1778034675000,-779.226677,0.00041096,120]
[421663714,1778034676000,-1022.0,0.00041096,120]
[421663698,1778034676000,-1504.336193,0.00041096,120]
[421663712,1778034676000,-1504.3362,0.00041096,120]
[421663709,1778034676000,-1504.336193,0.00041096,120]
[421663715,1778034676000,-1022.0,0.00041096,120]
[421663708,1778034676000,-1504.336193,0.00041096,120]
[421663716,1778034676000,-1022.0,0.00041096,120]
[421663707,1778034676000,-1504.336193,0.00041096,120]
[421663711,1778034676000,-1504.336193,0.00041096,120]
[421663705,1778034676000,-1504.336193,0.00041096,120]
[421663706,1778034676000,-1504.336193,0.00041096,120]
[421663710,1778034676000,-1504.336193,0.00041096,120]
[421663713,1778034676000,-623.0,0.00041096,120]
[421663718,1778034676000,-1022.0,0.00041096,120]
[421663721,1778034676000,-1022.0,0.00041096,120]
[421663720,1778034676000,-1022.0,0.00041096,120]
[421663719,1778034676000,-1022.0,0.00041096,120]
[421663725,1778034676000,-1022.0,0.00041096,120]
[421663722,1778034676000,-1022.0,0.00041096,120]
[421663726,1778034676000,-1022.0,0.00041096,120]
[421663727,1778034676000,-1022.0,0.00041096,120]
[421663733,1778034676000,-1022.0,0.00041096,120]
[421663723,1778034676000,-1022.0,0.00041096,120]
[421663724,1778034676000,-1022.0,0.00041096,120]
[421663728,1778034676000,-1022.0,0.00041096,120]
[421663730,1778034676000,-1022.0,0.00041096,120]
[421663729,1778034676000,-1022.0,0.00041096,120]
[421663703,1778034676000,-1504.336193,0.00041096,120]
[421663717,1778034676000,-1022.0,0.00041096,120]
[421663704,1778034676000,-1504.336193,0.00041096,120]
[421663676,1778034676000,-151.0,0.00041096,2]
[421663700,1778034676000,-1504.336193,0.00041096,120]
[421663732,1778034676000,-1022.0,0.00041096,120]
[421663673,1778034676000,-825.820429,0.00041096,120]
[421663672,1778034676000,-825.820429,0.00041096,120]
[421663675,1778034676000,-151.0,0.00041096,2]
[421663674,1778034676000,-825.820426,0.00041096,120]
[421663677,1778034676000,-151.0,0.00041096,2]
[421663678,1778034676000,-151.0,0.00041096,2]
[421663679,1778034676000,-151.0,0.00041096,2]
[421663681,1778034676000,-151.0,0.00041096,2]
[421663680,1778034676000,-151.0,0.00041096,2]
[421663683,1778034676000,-151.0,0.00041096,2]
[421663689,1778034676000,-151.0,0.00041096,120]
[421663690,1778034676000,-151.0,0.00041096,120]
[421663695,1778034676000,-1504.336193,0.00041096,120]
[421663685,1778034676000,-212.986406,0.00041096,2]
[421663691,1778034676000,-151.0,0.00041096,120]
[421663682,1778034676000,-151.0,0.00041096,2]
[421663684,1778034676000,-151.0,0.00041096,2]
[421663686,1778034676000,-153.966188,0.00041096,120]
[421663687,1778034676000,-151.0,0.00041096,120]
[421663692,1778034676000,-276.255036,0.00041096,120]
[421663697,1778034676000,-1504.336193,0.00041096,120]
[421663699,1778034676000,-1504.336193,0.00041096,120]
[421663696,1778034676000,-1504.336193,0.00041096,120]
[421663693,1778034676000,-1504.336193,0.00041096,120]
[421663702,1778034676000,-1504.336193,0.00041096,120]
[421663701,1778034676000,-1504.336193,0.00041096,120]
[421663694,1778034676000,-1504.336193,0.00041096,120]
[421663688,1778034676000,-151.0,0.00041096,120]
[421663731,1778034676000,-1022.0,0.00041096,120]
[421663777,1778034676000,-597.04708204,0.00041149,120]
[421663739,1778034676000,-155.53805552,0.000411,120]
[421663769,1778034676000,-182.84134972,0.000411,120]
[421663771,1778034676000,-182.84134972,0.000411,120]
[421663780,1778034676000,-800.0,0.00041176,120]
[421663770,1778034676000,-182.84134972,0.000411,120]
[421663781,1778034676000,-150.0,0.00041178,30]
[421663774,1778034676000,-182.84134972,0.000411,120]
[421663772,1778034676000,-182.84134972,0.000411,120]
[421663773,1778034676000,-182.84134972,0.000411,120]
[421663778,1778034676000,-597.04708204,0.00041149,120]
[421663776,1778034676000,-324.33,0.000411,120]
[421663779,1778034676000,-1021.11885972,0.00041159,2]
[421663775,1778034676000,-182.84134972,0.000411,120]
[421663792,1778034676000,-160.0,0.000412,120]
[421663768,1778034676000,-182.84134972,0.000411,120]
[421663782,1778034676000,-1196.48559017,0.00041178,30]
[421663793,1778034676000,-2500.0,0.000412,120]
[421663785,1778034676000,-150.0,0.00041178,30]
[421663784,1778034676000,-2460.12537443,0.00041178,30]
[421663789,1778034676000,-2500.0,0.000412,120]
[421663788,1778034676000,-1734.62772924,0.00041199,30]
[421663787,1778034676000,-1095.23,0.00041189,120]
[421663786,1778034676000,-344.36358014,0.00041178,30]
[421663791,1778034676000,-2500.0,0.000412,120]
[421663790,1778034676000,-1000.0,0.000412,120]
[421663796,1778034676000,-2500.0,0.000412,120]
[421663795,1778034676000,-2500.0,0.000412,120]
[421663797,1778034676000,-597.04708204,0.00041204,120]
[421663737,1778034676000,-1045.87579494,0.00041096,120]
[421663794,1778034676000,-2500.0,0.000412,120]
[421663761,1778034676000,-182.84134972,0.000411,120]
[421663783,1778034676000,-150.0,0.00041178,30]
[421663763,1778034676000,-182.84134972,0.000411,120]
[421663762,1778034676000,-182.84134972,0.000411,120]
[421663734,1778034676000,-1022.0,0.00041096,120]
[421663735,1778034676000,-1022.0,0.00041096,120]
[421663738,1778034676000,-154.0,0.000411,120]
[421663742,1778034676000,-155.53805552,0.000411,120]
[421663740,1778034676000,-155.53805552,0.000411,120]
[421663736,1778034676000,-1022.0,0.00041096,120]
[421663743,1778034676000,-155.53805552,0.000411,120]
[421663744,1778034676000,-155.53805552,0.000411,120]
[421663747,1778034676000,-155.53805552,0.000411,120]
[421663745,1778034676000,-155.53805552,0.000411,120]
[421663748,1778034676000,-155.53805552,0.000411,120]
[421663746,1778034676000,-155.53805552,0.000411,120]
[421663749,1778034676000,-155.53805552,0.000411,120]
[421663752,1778034676000,-155.53805552,0.000411,120]
[421663741,1778034676000,-155.53805552,0.000411,120]
[421663765,1778034676000,-182.84134972,0.000411,120]
[421663757,1778034676000,-182.84134972,0.000411,120]
[421663760,1778034676000,-182.84134972,0.000411,120]
[421663764,1778034676000,-182.84134972,0.000411,120]
[421663751,1778034676000,-155.53805552,0.000411,120]
[421663766,1778034676000,-182.84134972,0.000411,120]
[421663759,1778034676000,-182.84134972,0.000411,120]
[421663767,1778034676000,-182.84134972,0.000411,120]
[421663756,1778034676000,-155.53805552,0.000411,120]
[421663753,1778034676000,-155.53805552,0.000411,120]
[421663755,1778034676000,-155.53805552,0.000411,120]
[421663750,1778034676000,-155.53805552,0.000411,120]
[421663754,1778034676000,-155.53805552,0.000411,120]
[421663758,1778034676000,-182.84134972,0.000411,120]
[421663844,1778034677000,-2500.0,0.000415,120]
[421663846,1778034677000,-545.0,0.000415,120]
[421663843,1778034677000,-133027.62766243,0.000415,120]
[421663841,1778034677000,-1095.23,0.00041489,120]
[421663839,1778034677000,-597.04708204,0.00041478,120]
[421663825,1778034677000,-597.04708204,0.00041423,120]
[421663838,1778034677000,-182.84,0.0004147,120]
[421663835,1778034677000,-156.2806989,0.00041464,2]
[421663829,1778034677000,-293.0,0.00041446,90]
[421663828,1778034677000,-189.47926864,0.00041433,120]
[421663824,1778034677000,-16568.9126,0.00041409,30]
[421663845,1778034677000,-1000.0,0.000415,120]
[421663837,1778034677000,-155.53,0.0004147,120]
[421663840,1778034677000,-597.04708204,0.00041478,120]
[421663852,1778034677000,-2500.0,0.000415,120]
[421663842,1778034677000,-400.0,0.000415,120]
[421663847,1778034677000,-150.0,0.000415,120]
[421663849,1778034677000,-1000.0,0.000415,120]
[421663848,1778034677000,-1000.0,0.000415,120]
[421663850,1778034677000,-160.0,0.000415,78]
[421663860,1778034677000,-50000.0,0.0004153,120]
[421663859,1778034677000,-219.8,0.00041529,120]
[421663851,1778034677000,-2500.0,0.000415,120]
[421663857,1778034677000,-249.31281562,0.00041529,13]
[421663854,1778034677000,-836.76182996,0.000415,30]
[421663858,1778034677000,-257.75,0.00041529,120]
[421663856,1778034677000,-50000.0,0.0004152,120]
[421663853,1778034677000,-8902.44406883,0.000415,120]
[421663836,1778034677000,-950.23078297,0.00041464,120]
[421663826,1778034677000,-597.04708204,0.00041423,120]
[421663807,1778034677000,-693.33,0.0004126,60]
[421663821,1778034677000,-151.0,0.000414,120]
[421663806,1778034677000,-50000.0,0.0004126,60]
[421663802,1778034677000,-150.0,0.0004125,120]
[421663804,1778034677000,-597.04708204,0.0004126,120]
[421663799,1778034677000,-32672.45604174,0.00041209,70]
[421663800,1778034677000,-8426.47188997,0.00041234,31]
[421663798,1778034677000,-597.04708204,0.00041204,120]
[421663803,1778034677000,-1021.11885972,0.00041259,2]
[421663801,1778034677000,-207.80617411,0.00041242,7]
[421663805,1778034677000,-597.04708204,0.0004126,120]
[421663808,1778034677000,-230.5,0.0004128,120]
[421663820,1778034677000,-5118.01986841,0.000414,120]
[421663811,1778034677000,-233.94988575,0.00041293,120]
[421663819,1778034677000,-1095.23,0.00041389,120]
[421663810,1778034677000,-233.14650286,0.00041293,120]
[421663812,1778034677000,-597.04708204,0.00041314,120]
[421663809,1778034677000,-1095.23,0.00041289,120]
[421663813,1778034677000,-597.04708204,0.00041314,120]
[421663814,1778034677000,-315.87956229,0.00041351,120]
[421663855,1778034677000,-50000.0,0.0004151,120]
[421663818,1778034677000,-597.04708204,0.00041368,120]
[421663816,1778034677000,-1021.11885972,0.00041359,2]
[421663817,1778034677000,-597.04708204,0.00041368,120]
[421663822,1778034677000,-160.0,0.000414,77]
[421663831,1778034677000,-1021.11885972,0.00041459,2]
[421663832,1778034677000,-229.0370756,0.00041463,2]
[421663823,1778034677000,-200.0,0.00041408,2]
[421663833,1778034677000,-22595.6675164,0.00041464,2]
[421663830,1778034677000,-4297.5183099,0.0004145,2]
[421663834,1778034677000,-303.1203914,0.00041464,2]
[421663827,1778034677000,-5053.42959064,0.00041429,28]
[421663861,1778034677000,-597.04708204,0.00041533,120]
[421663815,1778034677000,-179.20742324,0.00041351,120]
[421663862,1778034677000,-597.04708204,0.00041533,120]
[421663898,1778034677000,-229.95,0.00041729,120]
[421663895,1778034677000,-433.46,0.00041729,120]
[421663899,1778034677000,-150.0,0.0004175,120]
[421663900,1778034677000,-1021.11885972,0.00041759,2]
[421663902,1778034677000,-7476.4104621,0.000418,120]
[421663903,1778034677000,-50000.0,0.000418,120]
[421663904,1778034677000,-652.82,0.000418,120]
[421663901,1778034677000,-1095.23,0.00041789,120]
[421663912,1778034677000,-983.22,0.00041811,120]
[421663911,1778034677000,-173.46,0.00041811,120]
[421663907,1778034677000,-2500.0,0.000418,120]
[421663908,1778034677000,-258.21052812,0.00041806,120]
[421663910,1778034677000,-50000.0,0.0004181,120]
[421663906,1778034677000,-2500.0,0.000418,120]
[421663914,1778034677000,-158.81,0.00041811,120]
[421663905,1778034677000,-580.0,0.000418,120]
[421663913,1778034677000,-607.54,0.00041811,120]
[421663909,1778034677000,-206.19,0.0004181,30]
[421663915,1778034677000,-366.38,0.00041811,120]
[421663916,1778034677000,-150.0,0.00041811,120]
[421663918,1778034677000,-50000.0,0.0004182,120]
[421663917,1778034677000,-215.63,0.00041811,120]
[421663923,1778034677000,-500.0,0.00041845,30]
[421663919,1778034677000,-150.0,0.00041834,2]
[421663925,1778034677000,-1021.11885972,0.00041859,2]
[421663921,1778034677000,-157.0,0.00041841,3]
[421663920,1778034677000,-1672.7364795,0.00041836,30]
[421663922,1778034677000,-500.0,0.00041845,30]
[421663863,1778034677000,-50000.0,0.0004154,120]
[421663893,1778034677000,-447.58,0.00041729,120]
[421663892,1778034677000,-800.0,0.00041724,120]
[421663924,1778034677000,-270.01,0.00041845,30]
[421663897,1778034677000,-648.92,0.00041729,120]
[421663896,1778034677000,-1763.17,0.00041729,120]
[421663865,1778034677000,-50000.0,0.0004155,120]
[421663864,1778034677000,-1001.04,0.0004155,120]
[421663867,1778034677000,-1021.11885972,0.00041559,2]
[421663869,1778034677000,-1000.0,0.0004156,120]
[421663873,1778034677000,-50000.0,0.0004158,120]
[421663866,1778034677000,-150.0,0.00041558,120]
[421663868,1778034677000,-50000.0,0.0004156,120]
[421663874,1778034677000,-597.04708204,0.00041588,120]
[421663871,1778034677000,-50000.0,0.0004157,120]
[421663872,1778034677000,-214.94912688,0.00041578,30]
[421663886,1778034677000,-1142.1,0.00041694,120]
[421663875,1778034677000,-597.04708204,0.00041588,120]
[421663876,1778034677000,-1095.23,0.00041589,120]
[421663870,1778034677000,-400.0,0.0004157,3]
[421663880,1778034677000,-329.49,0.000416,120]
[421663887,1778034677000,-202686.79522896,0.000417,31]
[421663890,1778034677000,-10733.57,0.00041722,14]
[421663889,1778034677000,-10626.36,0.00041722,14]
[421663894,1778034677000,-329.26,0.00041729,120]
[421663888,1778034677000,-151.58,0.00041705,2]
[421663885,1778034677000,-1095.23,0.00041689,120]
[421663882,1778034677000,-1559.0,0.00041644,120]
[421663891,1778034677000,-260.68,0.00041722,14]
[421663883,1778034677000,-975.99992355,0.00041653,120]
[421663884,1778034677000,-1021.11885972,0.00041659,2]
[421663879,1778034677000,-49976.0,0.00041592,120]
[421663881,1778034677000,-341.96943758,0.00041643,120]
[421663878,1778034677000,-50000.0,0.00041591,120]
[421663877,1778034677000,-50000.0,0.0004159,120]
[421663958,1778034678000,-13733.86024947,0.0004189,60]
[421663959,1778034678000,-151.0,0.00041899,48]
[421663960,1778034678000,-151.0,0.00041899,79]
[421663968,1778034678000,-150.54233273,0.000419,120]
[421663957,1778034678000,-1095.23,0.00040889,120]
[421663953,1778034678000,-290.195771,0.000296,7]
[421663952,1778034678000,-290.195771,0.000296,7]
[421663951,1778034678000,-1436.52500881,0.00029437,7]
[421663954,1778034678000,-304.45245665,0.00038258,2]
[421663967,1778034678000,-150.5423328,0.000419,120]
[421663956,1778034678000,-1095.23,0.00040189,120]
[421663964,1778034678000,-13558.67649185,0.000419,70]
[421663966,1778034678000,-3800.0,0.000419,15]
[421663962,1778034678000,-173766.69553599,0.000419,30]
[421663965,1778034678000,-150.0,0.000419,17]
[421663963,1778034678000,-163.9,0.000419,120]
[421663969,1778034678000,-150.54233273,0.000419,120]
[421663974,1778034678000,-150.54233273,0.000419,120]
[421663971,1778034678000,-150.54233273,0.000419,120]
[421663970,1778034678000,-150.54233273,0.000419,120]
[421663955,1778034678000,-1095.23,0.00039889,120]
[421663972,1778034678000,-150.54233273,0.000419,120]
[421663961,1778034678000,-151.0,0.00041899,120]
[421663944,1778034678000,-1047.0,0.00022,2]
[421663929,1778034678000,-250.0,0.00041863,120]
[421663949,1778034678000,-290.195771,0.00027397,2]
[421663975,1778034678000,-150.54233273,0.000419,120]
[421663927,1778034678000,-250.0,0.00041863,120]
[421663926,1778034678000,-178.18035222,0.00041862,97]
[421663937,1778034678000,-30893.35950001,0.0004188,60]
[421663938,1778034678000,-158.08564786,0.00041889,120]
[421663936,1778034678000,-20000.0,0.0004188,60]
[421663928,1778034678000,-250.0,0.00041863,120]
[421663931,1778034678000,-250.0,0.00041863,120]
[421663932,1778034678000,-250.0,0.00041863,120]
[421663935,1778034678000,-290.02,0.00041863,120]
[421663950,1778034678000,-290.195771,0.00028,7]
[421663930,1778034678000,-250.0,0.00041863,120]
[421663933,1778034678000,-250.0,0.00041863,120]
[421663939,1778034678000,-1095.23,0.00041889,120]
[421663940,1778034678000,-11265.13975153,0.0004189,60]
[421663941,1778034678000,-454.74909678,0.0001,2]
[421663942,1778034678000,-1047.0,0.00021,2]
[421663943,1778034678000,-500.0,0.00021738,2]
[421663945,1778034678000,-169.27678024,0.00023198,2]
[421663946,1778034678000,-500.0,0.0002594,2]
[421663948,1778034678000,-290.195771,0.00027397,2]
[421663947,1778034678000,-290.195771,0.00027397,2]
[421663934,1778034678000,-250.0,0.00041863,120]
[421663980,1778034678000,-150.54233273,0.000419,120]
[421663979,1778034678000,-150.54233273,0.000419,120]
[421664026,1778034678000,-500.0,0.00041917,120]
[421664004,1778034678000,-500.0,0.00041916,120]
[421664003,1778034678000,-500.0,0.00041916,120]
[421664008,1778034678000,-151.0,0.00041916,60]
[421664009,1778034678000,-500.0,0.00041917,120]
[421664010,1778034678000,-500.0,0.00041917,120]
[421664011,1778034678000,-500.0,0.00041917,120]
[421664012,1778034678000,-500.0,0.00041917,120]
[421664013,1778034678000,-500.0,0.00041917,120]
[421664014,1778034678000,-500.0,0.00041917,120]
[421664017,1778034678000,-500.0,0.00041917,120]
[421664002,1778034678000,-500.0,0.00041916,120]
[421664016,1778034678000,-500.0,0.00041917,120]
[421664015,1778034678000,-500.0,0.00041917,120]
[421664023,1778034678000,-500.0,0.00041917,120]
[421664018,1778034678000,-500.0,0.00041917,120]
[421664021,1778034678000,-500.0,0.00041917,120]
[421664027,1778034678000,-500.0,0.00041917,120]
[421664019,1778034678000,-500.0,0.00041917,120]
[421664020,1778034678000,-500.0,0.00041917,120]
[421664025,1778034678000,-500.0,0.00041917,120]
[421664024,1778034678000,-500.0,0.00041917,120]
[421663976,1778034678000,-150.54233273,0.000419,120]
[421664022,1778034678000,-500.0,0.00041917,120]
[421664006,1778034678000,-573.37467761,0.00041916,120]
[421664007,1778034678000,-200.0,0.00041916,60]
[421663995,1778034678000,-500.0,0.00041916,120]
[421663973,1778034678000,-150.54233273,0.000419,120]
[421663977,1778034678000,-150.54233273,0.000419,120]
[421663978,1778034678000,-150.54233273,0.000419,120]
[421663982,1778034678000,-150.54233273,0.000419,120]
[421663990,1778034678000,-500.0,0.00041916,120]
[421663983,1778034678000,-150.54233273,0.000419,120]
[421664001,1778034678000,-500.0,0.00041916,120]
[421663991,1778034678000,-519.40205089,0.00041916,120]
[421663993,1778034678000,-500.0,0.00041916,120]
[421663984,1778034678000,-150.54233273,0.000419,120]
[421663992,1778034678000,-500.0,0.00041916,120]
[421663985,1778034678000,-219.55237565,0.00041915,60]
[421663981,1778034678000,-150.54233273,0.000419,120]
[421663998,1778034678000,-500.0,0.00041916,120]
[421663987,1778034678000,-259.20048071,0.00041916,120]
[421664000,1778034678000,-500.0,0.00041916,120]
[421664005,1778034678000,-500.0,0.00041916,120]
[421663999,1778034678000,-500.0,0.00041916,120]
[421663997,1778034678000,-500.0,0.00041916,120]
[421663994,1778034678000,-500.0,0.00041916,120]
[421663986,1778034678000,-151.0,0.00041915,60]
[421663989,1778034678000,-500.0,0.00041916,120]
[421663988,1778034678000,-500.0,0.00041916,120]
[421663996,1778034678000,-500.0,0.00041916,120]
[421664070,1778034679000,-640.05,0.00041917,120]
[421664078,1778034679000,-640.05,0.00041917,120]
[421664069,1778034679000,-640.05,0.00041917,120]
[421664067,1778034679000,-640.05,0.00041917,120]
[421664079,1778034679000,-862.87,0.00041917,120]
[421664061,1778034679000,-640.05,0.00041917,120]
[421664057,1778034679000,-640.05,0.00041917,120]
[421664063,1778034679000,-640.05,0.00041917,120]
[421664062,1778034679000,-862.87,0.00041917,120]
[421664064,1778034679000,-862.87,0.00041917,120]
[421664059,1778034679000,-862.87,0.00041917,120]
[421664071,1778034679000,-862.87,0.00041917,120]
[421664068,1778034679000,-862.87,0.00041917,120]
[421664076,1778034679000,-640.05,0.00041917,120]
[421664085,1778034679000,-862.87,0.00041917,120]
[421664072,1778034679000,-640.05,0.00041917,120]
[421664074,1778034679000,-640.05,0.00041917,120]
[421664075,1778034679000,-862.87,0.00041917,120]
[421664077,1778034679000,-862.87,0.00041917,120]
[421664082,1778034679000,-640.05,0.00041917,120]
[421664083,1778034679000,-862.87,0.00041917,120]
[421664080,1778034679000,-640.05,0.00041917,120]
[421664084,1778034679000,-640.05,0.00041917,120]
[421664093,1778034679000,-1252.5,0.00041917,120]
[421664081,1778034679000,-862.87,0.00041917,120]
[421664092,1778034679000,-1252.5,0.00041917,120]
[421664090,1778034679000,-640.22351911,0.00041917,120]
[421664056,1778034679000,-640.05,0.00041917,120]
[421664073,1778034679000,-862.87,0.00041917,120]
[421664060,1778034679000,-640.05,0.00041917,120]
[421664039,1778034679000,-556.81588451,0.00041917,120]
[421664054,1778034679000,-862.87,0.00041917,120]
[421664035,1778034679000,-500.0,0.00041917,120]
[421664029,1778034679000,-202.58056933,0.00041917,120]
[421664037,1778034679000,-164.12030291,0.00041917,120]
[421664038,1778034679000,-500.0,0.00041917,120]
[421664036,1778034679000,-500.0,0.00041917,120]
[421664040,1778034679000,-500.0,0.00041917,120]
[421664028,1778034679000,-500.0,0.00041917,120]
[421664031,1778034679000,-155.35295437,0.00041917,120]
[421664030,1778034679000,-201.26253076,0.00041917,120]
[421664032,1778034679000,-158.09513822,0.00041917,120]
[421664034,1778034679000,-500.0,0.00041917,120]
[421664033,1778034679000,-561.39774132,0.00041917,120]
[421664052,1778034679000,-862.87,0.00041917,120]
[421664058,1778034679000,-862.87,0.00041917,120]
[421664042,1778034679000,-268.66396044,0.00041917,120]
[421664047,1778034679000,-862.87,0.00041917,120]
[421664044,1778034679000,-862.87,0.00041917,120]
[421664045,1778034679000,-862.87,0.00041917,120]
[421664050,1778034679000,-862.87,0.00041917,120]
[421664048,1778034679000,-640.05,0.00041917,120]
[421664041,1778034679000,-158.02757533,0.00041917,120]
[421664051,1778034679000,-640.05,0.00041917,120]
[421664049,1778034679000,-640.05,0.00041917,120]
[421664043,1778034679000,-862.87,0.00041917,120]
[421664046,1778034679000,-640.05,0.00041917,120]
[421664055,1778034679000,-862.87,0.00041917,120]
[421664065,1778034679000,-640.05,0.00041917,120]
[421664066,1778034679000,-862.87,0.00041917,120]
[421664053,1778034679000,-640.05,0.00041917,120]
[421664088,1778034679000,-640.05,0.00041917,120]
[421664141,1778034679000,-500.0,0.00041917,120]
[421664089,1778034679000,-863.07432877,0.00041917,120]
[421664123,1778034679000,-500.0,0.00041917,120]
[421664125,1778034679000,-500.0,0.00041917,120]
[421664127,1778034679000,-500.0,0.00041917,120]
[421664130,1778034679000,-500.0,0.00041917,120]
[421664129,1778034679000,-500.0,0.00041917,120]
[421664126,1778034679000,-500.0,0.00041917,120]
[421664128,1778034679000,-500.0,0.00041917,120]
[421664131,1778034679000,-500.0,0.00041917,120]
[421664142,1778034679000,-500.0,0.00041917,120]
[421664134,1778034679000,-500.0,0.00041917,120]
[421664132,1778034679000,-500.0,0.00041917,120]
[421664133,1778034679000,-500.0,0.00041917,120]
[421664135,1778034679000,-500.0,0.00041917,120]
[421664122,1778034679000,-500.0,0.00041917,120]
[421664136,1778034679000,-647.01376244,0.00041917,120]
[421664140,1778034679000,-500.0,0.00041917,120]
[421664139,1778034679000,-500.0,0.00041917,120]
[421664138,1778034679000,-155.07703026,0.00041917,120]
[421664143,1778034679000,-500.0,0.00041917,120]
[421664144,1778034679000,-500.0,0.00041917,120]
[421664146,1778034679000,-500.0,0.00041917,120]
[421664148,1778034679000,-500.0,0.00041917,120]
[421664147,1778034679000,-500.0,0.00041917,120]
[421664150,1778034679000,-500.0,0.00041917,120]
[421664151,1778034679000,-506.38616294,0.00041917,120]
[421664145,1778034679000,-375.07204757,0.00041917,120]
[421664149,1778034679000,-514.73998195,0.00041917,120]
[421664086,1778034679000,-640.05,0.00041917,120]
[421664137,1778034679000,-160.4245312,0.00041917,120]
[421664124,1778034679000,-500.0,0.00041917,120]
[421664152,1778034679000,-500.0,0.00041917,120]
[421664120,1778034679000,-500.0,0.00041917,120]
[421664121,1778034679000,-500.0,0.00041917,120]
[421664087,1778034679000,-862.87,0.00041917,120]
[421664094,1778034679000,-1252.5,0.00041917,120]
[421664096,1778034679000,-1252.5,0.00041917,120]
[421664097,1778034679000,-1252.5,0.00041917,120]
[421664098,1778034679000,-1252.5,0.00041917,120]
[421664099,1778034679000,-1252.5,0.00041917,120]
[421664100,1778034679000,-1252.5,0.00041917,120]
[421664101,1778034679000,-1252.5,0.00041917,120]
[421664106,1778034679000,-1252.5,0.00041917,120]
[421664095,1778034679000,-1252.5,0.00041917,120]
[421664103,1778034679000,-1252.5,0.00041917,120]
[421664104,1778034679000,-1252.5,0.00041917,120]
[421664102,1778034679000,-1252.5,0.00041917,120]
[421664091,1778034679000,-1252.5,0.00041917,120]
[421664107,1778034679000,-1252.5,0.00041917,120]
[421664105,1778034679000,-1252.5,0.00041917,120]
[421664113,1778034679000,-1252.5,0.00041917,120]
[421664112,1778034679000,-1252.5,0.00041917,120]
[421664114,1778034679000,-1252.54095629,0.00041917,120]
[421664111,1778034679000,-1252.5,0.00041917,120]
[421664110,1778034679000,-1252.5,0.00041917,120]
[421664118,1778034679000,-500.0,0.00041917,120]
[421664119,1778034679000,-500.0,0.00041917,120]
[421664108,1778034679000,-1252.5,0.00041917,120]
[421664115,1778034679000,-151.76105572,0.00041917,120]
[421664117,1778034679000,-626.83930886,0.00041917,120]
[421664116,1778034679000,-500.0,0.00041917,120]
[421664109,1778034679000,-1252.5,0.00041917,120]
[421664202,1778034680000,-1157.26,0.00041917,120]
[421664192,1778034680000,-1157.26,0.00041917,120]
[421664203,1778034680000,-547.51,0.00041917,120]
[421664201,1778034680000,-547.51,0.00041917,120]
[421664185,1778034680000,-1861.65,0.00041917,120]
[421664190,1778034680000,-547.51,0.00041917,120]
[421664187,1778034680000,-1861.65,0.00041917,120]
[421664183,1778034680000,-1861.65,0.00041917,120]
[421664186,1778034680000,-1861.65,0.00041917,120]
[421664196,1778034680000,-1157.26,0.00041917,120]